bitfinex/quotes_ETHUSD_20250504
["timestamp","ask_amount","ask_price","bid_price","bid_amount"]
[1746366560718,6.15605296,1826.6,1826.5,21.30262759]
[1746366564122,6.04,1826.6,1826.5,21.30262759]
[1746366564455,6.15776304,1826.6,1826.5,24.52036953]
[1746366565649,0.11776304,1826.6,1826.5,24.52036953]
[1746366565951,6.04,1827.0,1826.6,5.47435354]
[1746366566139,0.11818847,1826.9,1826.7,5.47432914]
[1746366566339,0.11818847,1826.9,1826.8,4.785]
[1746366567241,0.11818847,1826.9,1826.8,5.5376]
[1746366567627,0.11818847,1826.9,1826.8,4.785]
[1746366571569,6.15818847,1826.9,1826.8,4.785]
[1746366573070,6.15818847,1826.9,1826.8,14.05077154]
[1746366573460,6.04,1826.9,1826.8,14.05077154]
[1746366573777,6.14663305,1826.9,1826.8,14.05077154]
[1746366576580,6.14663305,1826.9,1826.8,28.55077154]
[1746366576878,6.04,1826.9,1826.8,28.55077154]
[1746366577474,11.51226761,1827.4,1827.1,0.7658]
[1746366577650,6.04,1827.4,1827.2,10.25783577]
[1746366577850,6.04,1827.4,1827.2,6.44013585]
[1746366579881,6.04,1827.4,1827.2,20.94013585]
[1746366580383,6.04,1827.4,1827.2,26.41294153]
[1746366580688,6.04,1827.4,1827.2,20.94013585]
[1746366581762,11.51225665,1827.4,1827.2,20.94013585]
[1746366581960,11.51225665,1827.4,1827.2,14.5]
[1746366581961,5.47255513,1827.3,1827.2,14.5]
[1746366582167,6.04,1827.4,1827.2,19.284]
[1746366582894,6.04,1827.4,1827.2,11.03128613]
[1746366583194,6.04,1827.5,1827.2,11.03113811]
[1746366583399,6.04,1827.5,1827.3,0.55]
[1746366583685,6.04,1827.5,1827.3,1.70811381]
[1746366586252,11.51183443,1827.6,1827.3,1.70811381]
[1746366587502,6.04,1827.6,1827.3,1.70811381]
[1746366587796,11.51177473,1827.6,1827.3,1.70811381]
[1746366588094,11.51178251,1827.6,1827.3,1.70811381]
[1746366588795,0.11031779,1827.5,1827.3,1.70811381]
[1746366589186,0.11031779,1827.5,1827.3,7.18066278]
[1746366589384,0.11031779,1827.5,1827.4,6.19032194]
[1746366589699,0.11031779,1827.5,1827.4,0.71806628]
[1746366589998,0.11031779,1827.5,1827.4,6.19032194]
[1746366590203,0.11031779,1827.5,1827.4,0.71806628]
[1746366590698,0.11031779,1827.5,1827.4,6.24503846]
[1746366590898,0.11031779,1827.5,1827.4,0.71806628]
[1746366591278,0.11031779,1827.5,1827.4,6.19032194]
[1746366591597,0.11031779,1827.5,1827.4,7.01062194]
[1746366591895,0.11031779,1827.5,1827.4,7.06533847]
[1746366592104,0.11031779,1827.5,1827.4,7.61533847]
[1746366592478,0.11031779,1827.5,1827.4,7.56062194]
[1746366592787,0.11031779,1827.5,1827.4,7.61533711]
[1746366592988,0.11031779,1827.5,1827.4,7.56062194]
[1746366594676,0.11031779,1827.5,1827.4,0.71806628]
[1746366595002,0.11031779,1827.5,1827.4,4.724]
[1746366595566,0.11031779,1827.5,1827.4,10.74625566]
[1746366595803,0.11031779,1827.5,1827.4,10.8009733]
[1746366596183,0.11031779,1827.5,1827.4,11.56655566]
[1746366599793,6.04,1827.6,1827.5,6.02195622]
[1746366599972,6.04,1827.9,1827.7,1.3148]
[1746366600306,6.04,1827.9,1827.8,4.724]
[1746366603791,0.10675058,1827.9,1827.8,4.724]
[1746366604000,11.51028231,1828.1,1827.8,4.724]
[1746366604208,16.98072459,1828.1,1827.8,5.8750042]
[1746366604517,0.10689218,1828.0,1827.8,5.8750042]
[1746366604982,6.14689218,1828.0,1827.8,5.8750042]
[1746366605478,6.14689218,1828.0,1827.8,11.34605872]
[1746366605835,6.14689218,1828.0,1827.8,11.34588956]
[1746366606019,6.14689218,1828.0,1827.9,6.60534775]
[1746366606197,6.14689218,1828.0,1827.9,1.68458896]
[1746366606398,6.14689218,1828.0,1827.9,7.15534775]
[1746366607401,6.14689218,1828.0,1827.9,1.68458896]
[1746366608225,6.14689218,1828.0,1827.9,7.15534775]
[1746366609034,6.14689218,1828.0,1827.9,7.93854775]
[1746366610102,6.14689218,1828.0,1827.9,12.66154775]
[1746366611134,6.14689218,1828.0,1827.9,2.46778896]
[1746366611330,5.47095461,1827.9,1827.7,0.8116]
[1746366611533,11.61747079,1828.0,1827.9,4.723]
[1746366611837,11.51057861,1828.0,1827.9,4.723]
[1746366612416,6.04,1828.0,1827.9,4.723]
[1746366614224,6.04,1828.0,1827.9,5.5346]
[1746366614410,6.04,1828.0,1827.9,6.63516454]
[1746366615442,6.04,1828.0,1827.9,5.82356454]
[1746366615624,6.04,1828.0,1827.9,4.723]
[1746366617740,6.04,1828.0,1827.9,19.223]
[1746366618639,11.51045951,1828.0,1827.9,19.223]
[1746366618842,6.15123027,1828.0,1827.9,19.223]
[1746366620414,6.15123027,1828.0,1827.9,25.24375879]
[1746366620744,6.15123027,1828.0,1827.9,14.05973467]
[1746366621158,6.15123027,1828.0,1827.9,28.55973467]
[1746366622971,6.04,1828.0,1827.9,28.55973467]
[1746366623164,6.15425329,1828.0,1827.9,28.55973467]
[1746366623325,6.04,1828.0,1827.9,31.55973467]
[1746366623841,6.04,1828.0,1827.9,51.29773467]
[1746366624425,11.66699145,1828.5,1828.2,0.55]
[1746366624755,0.11572471,1828.4,1828.3,4.705]
[1746366625445,0.11572471,1828.4,1828.3,19.205]
[1746366625833,0.11572471,1828.4,1828.3,26.48070551]
[1746366626155,0.11572471,1828.4,1828.3,19.755]
[1746366626323,0.11572471,1828.4,1828.3,19.205]
[1746366629062,0.11572471,1828.4,1828.3,19.755]
[1746366630371,6.15572471,1828.4,1828.3,26.02476188]
[1746366630678,6.15572471,1828.4,1828.3,15.8502]
[1746366630982,6.15572471,1828.4,1828.3,19.205]
[1746366631180,6.15572471,1828.4,1828.3,27.14506188]
[1746366631383,6.15572471,1828.4,1828.3,27.94526188]
[1746366633267,6.15572471,1828.4,1828.3,22.4757]
[1746366633475,11.62498745,1828.4,1828.3,19.205]
[1746366633777,6.31372471,1828.4,1828.3,19.205]
[1746366634079,11.78303433,1828.4,1828.3,4.705]
[1746366634374,6.31372471,1828.4,1828.3,4.705]
[1746366634688,11.78298745,1828.4,1828.3,4.705]
[1746366634978,11.78298745,1828.4,1828.2,14.5]
[1746366635160,6.31372471,1828.4,1828.3,4.705]
[1746366635351,6.15572471,1828.4,1828.3,4.705]
[1746366638867,11.62498745,1828.4,1828.3,4.705]
[1746366639177,6.15572471,1828.4,1828.3,4.705]
[1746366639682,11.62498745,1828.4,1828.3,4.705]
[1746366641286,11.62498745,1828.4,1828.1,0.55]
[1746366641580,11.78298745,1828.4,1828.1,0.55]
[1746366641753,11.78311397,1828.4,1828.2,19.205]
[1746366642125,6.04,1828.3,1828.2,19.205]
[1746366642441,6.1572894,1828.3,1828.2,14.5]
[1746366642650,6.1572894,1828.3,1828.2,19.205]
[1746366642850,6.1572894,1828.3,1828.2,19.755]
[1746366643050,6.1572894,1828.3,1828.2,22.5279]
[1746366643284,6.3152894,1828.3,1827.9,22.26237588]
[1746366643511,11.66767793,1828.3,1828.0,4.705]
[1746366643684,0.11649394,1828.2,1828.0,5.5024]
[1746366643893,0.11649394,1828.2,1828.1,14.5]
[1746366644213,0.11649394,1828.2,1828.1,21.31756027]
[1746366644422,6.04,1828.3,1828.2,6.01986106]
[1746366647389,6.04,1828.3,1828.2,20.51986106]
[1746366647595,6.04,1828.3,1828.2,21.30936106]
[1746366647810,6.04,1828.7,1828.3,5.46942676]
[1746366647983,6.04,1828.7,1828.5,0.55]
[1746366648815,11.50853813,1828.7,1828.5,15.05]
[1746366648986,16.97719618,1828.7,1828.5,15.05]
[1746366649192,11.50853813,1828.7,1828.5,15.05]
[1746366649394,11.50853813,1828.7,1828.5,0.55]
[1746366650800,6.04,1828.7,1828.5,2.5254]
[1746366651824,6.04,1828.7,1828.5,3.4027831]
[1746366651984,6.04,1828.8,1828.5,8.81693495]
[1746366652391,6.04,1828.8,1828.5,8.81682982]
[1746366652818,6.04,1828.8,1828.7,0.55]
[1746366652997,6.04,1828.9,1828.7,1.1518557]
[1746366653193,6.04,1828.9,1828.8,4.704]
[1746366656835,6.04,1828.9,1828.8,5.5267]
[1746366657149,6.04,1828.9,1828.8,4.704]
[1746366657834,6.446512,1829.0,1828.8,5.254]
[1746366657994,6.446512,1829.0,1828.9,1.0754]
[1746366659739,12.07208412,1829.0,1828.9,4.703]
[1746366659927,12.07208412,1829.0,1828.7,0.6018557]
[1746366660129,12.07208412,1829.0,1828.9,4.703]
[1746366660831,6.604512,1829.0,1828.9,4.703]
[1746366661346,12.07198056,1829.0,1828.9,4.703]
[1746366663742,5.46806649,1828.8,1828.7,14.5]
[1746366663930,5.46806649,1828.8,1828.7,4.703]
[1746366665047,11.50806649,1828.8,1828.6,14.5]
[1746366665252,6.04,1828.8,1828.7,4.703]
[1746366666955,6.04,1828.8,1828.7,10.7213655]
[1746366667144,6.04,1828.8,1828.7,13.92639791]
[1746366667457,6.04,1828.8,1828.7,13.87171747]
[1746366667964,6.04,1828.9,1828.8,6.28156649]
[1746366668415,6.04,1828.9,1828.8,0.8135]
[1746366669035,6.04,1828.9,1828.8,5.253]
[1746366669223,6.04,1828.9,1828.8,4.703]
[1746366669429,6.04,1828.9,1828.7,14.5]
[1746366669658,6.198,1828.9,1828.8,4.703]
[1746366669847,6.04,1828.9,1828.8,4.703]
[1746366671128,6.04,1828.9,1828.8,6.6233]
[1746366673117,6.04,1828.9,1828.8,4.703]
[1746366674678,6.14251597,1828.9,1828.8,4.703]
[1746366674873,6.14251597,1828.9,1828.8,19.203]
[1746366675562,6.04,1828.9,1828.8,19.203]
[1746366677135,6.14251597,1828.9,1828.8,19.203]
[1746366677358,6.14251597,1828.9,1828.8,19.753]
[1746366677558,6.14251597,1828.9,1828.8,27.74318331]
[1746366677738,6.14251597,1828.9,1828.8,28.53678331]
[1746366680750,6.04,1828.9,1828.8,28.53678331]
[1746366681091,6.14253197,1828.9,1828.8,28.53678331]
[1746366682962,6.04,1828.9,1828.8,28.53678331]
[1746366683173,6.446512,1829.0,1828.9,5.46776751]
[1746366683379,6.446512,1829.0,1828.9,10.21182259]
[1746366684002,6.446512,1829.0,1828.9,21.31136751]
[1746366684201,6.54973952,1829.0,1828.9,21.31136751]
[1746366684359,6.446512,1829.0,1828.9,21.31136751]
[1746366685187,6.446512,1829.0,1828.9,26.01236751]
[1746366685756,6.446512,1829.0,1828.9,25.21876751]
[1746366685958,6.446512,1829.0,1828.9,29.08035091]
[1746366687260,6.55262627,1829.0,1828.9,29.08035091]
[1746366687492,6.446512,1829.0,1828.9,29.08035091]
[1746366689690,6.55251815,1829.0,1828.9,29.08035091]
[1746366692678,6.55251815,1829.0,1828.9,28.28745091]
[1746366693399,6.446512,1829.0,1828.9,28.28745091]
[1746366693697,6.55251815,1829.0,1828.9,28.28745091]
[1746366694098,6.446512,1829.0,1828.9,28.28745091]
[1746366695378,6.55342473,1829.0,1828.9,28.28745091]
[1746366695777,6.446512,1829.0,1828.9,28.28745091]
[1746366697513,6.446512,1829.0,1828.9,29.06535091]
[1746366705520,6.55369571,1829.0,1828.9,28.28745091]
[1746366705822,6.446512,1829.0,1828.9,28.28745091]
[1746366706011,6.55369571,1829.0,1828.9,28.28745091]
[1746366707696,6.446512,1829.0,1828.9,28.28745091]
[1746366711616,6.55374613,1829.0,1828.9,28.28745091]
[1746366712201,6.446512,1829.0,1828.9,28.28745091]
[1746366712635,6.55374613,1829.0,1828.9,28.28745091]
[1746366713141,6.71174613,1829.0,1828.9,4.699]
[1746366713297,6.71174613,1829.0,1828.9,10.16676751]
[1746366713492,6.55374613,1829.0,1828.9,10.16676751]
[1746366714396,6.446512,1829.0,1828.9,10.16676751]
[1746366715640,6.55448009,1829.0,1828.9,10.16676751]
[1746366717029,6.55448009,1829.0,1828.9,24.66676751]
[1746366717230,6.446512,1829.0,1828.9,24.66676751]
[1746366718133,6.55448009,1829.0,1828.9,24.66676751]
[1746366718931,6.55448009,1829.0,1828.9,28.23022746]
[1746366719430,6.446512,1829.0,1828.9,28.23022746]
[1746366719637,6.55448009,1829.0,1828.9,28.23022746]
[1746366722318,6.446512,1829.0,1828.9,28.23022746]
[1746366722529,6.55448009,1829.0,1828.9,28.23022746]
[1746366722847,6.446512,1829.0,1828.9,28.23022746]
[1746366723444,6.55448009,1829.0,1828.9,28.23022746]
[1746366723810,6.446512,1829.0,1828.9,28.23022746]
[1746366724134,6.55367426,1829.0,1828.9,28.23022746]
[1746366728243,6.55367426,1829.0,1828.9,25.21676751]
[1746366733351,6.55367426,1829.0,1828.9,20.51776751]
[1746366733556,6.55367426,1829.0,1828.9,25.21676751]
[1746366734862,6.55367426,1829.0,1828.9,20.51776751]
[1746366735069,6.55367426,1829.0,1828.9,25.21676751]
[1746366736363,6.55367426,1829.0,1828.9,20.51776751]
[1746366736530,6.55367426,1829.0,1828.9,25.21676751]
[1746366737466,6.55367426,1829.0,1828.9,19.749]
[1746366737655,6.54482878,1829.0,1828.9,19.749]
[1746366737843,12.01229734,1829.0,1828.9,4.695]
[1746366738031,6.70282878,1829.0,1828.9,4.695]
[1746366738231,6.70282878,1829.0,1828.6,5.46853734]
[1746366738463,12.17032943,1829.0,1828.7,19.195]
[1746366741674,6.04,1828.9,1828.7,19.195]
[1746366741967,0.105907,1828.8,1828.7,19.195]
[1746366742274,6.04,1828.9,1828.7,19.195]
[1746366742471,0.105907,1828.8,1828.7,19.195]
[1746366742775,6.04,1828.9,1828.7,17.62256565]
[1746366742941,6.04,1828.9,1828.8,4.695]
[1746366743671,6.04,1828.9,1828.8,19.195]
[1746366745773,6.04,1828.9,1828.8,14.5]
[1746366745952,6.198,1828.9,1828.8,19.195]
[1746366746151,6.198,1828.9,1828.8,4.695]
[1746366746783,5.46864602,1828.7,1828.4,19.725]
[1746366746943,11.50826341,1828.8,1828.5,4.695]
[1746366747290,11.50826341,1828.8,1828.5,19.195]
[1746366748556,6.04,1828.8,1828.5,24.66383086]
[1746366748758,6.04,1828.8,1828.6,6.07333898]
[1746366749061,6.04,1828.8,1828.7,0.6073339]
[1746366749382,6.04,1828.8,1828.7,6.0756994]
[1746366750181,6.04,1828.8,1828.7,0.6073339]
[1746366750383,6.04,1828.9,1828.7,0.6073339]
[1746366750748,6.04,1828.9,1828.7,15.1073339]
[1746366753685,0.10384116,1828.8,1828.7,15.1073339]
[1746366753887,6.04,1828.9,1828.7,15.1073339]
[1746366754086,0.10384116,1828.8,1828.7,14.5]
[1746366754288,11.50780858,1828.9,1828.7,14.5]
[1746366754490,0.10384116,1828.8,1828.7,14.5]
[1746366754692,6.04,1828.9,1828.7,14.5]
[1746366754988,0.10384116,1828.8,1828.7,14.5]
[1746366755791,6.04,1828.9,1828.7,14.5]
[1746366755956,0.10384116,1828.8,1828.7,14.5]
[1746366756159,0.10384116,1828.8,1828.7,16.55186174]
[1746366756360,6.04,1828.8,1828.7,16.55186174]
[1746366756560,6.14384116,1828.8,1828.7,16.55186174]
[1746366759999,6.14384116,1828.8,1828.7,22.83342724]
[1746366760295,6.14384116,1828.8,1828.7,22.02022724]
[1746366762864,6.04,1828.8,1828.7,22.57022724]
[1746366763065,6.1443955,1828.8,1828.7,23.38342724]
[1746366763498,6.04,1828.8,1828.7,23.38342724]
[1746366765799,6.04,1828.9,1828.8,6.01806649]
[1746366766002,6.04,1828.9,1828.8,14.38509586]
[1746366766503,6.04,1828.9,1828.8,28.88509586]
[1746366768501,0.39766652,1829.0,1828.9,6.83096751]
[1746366769282,0.39766652,1829.0,1828.9,21.33096751]
[1746366770280,0.39766652,1829.0,1828.9,24.33096751]
[1746366770510,0.39766652,1829.0,1828.9,28.06625385]
[1746366772811,0.39766652,1829.0,1828.9,47.79025385]
[1746366773800,6.43766652,1829.0,1828.9,47.79025385]
[1746366776484,6.43766652,1829.0,1828.9,46.97705385]
[1746366777113,6.43766652,1829.0,1828.9,48.66505385]
[1746366777345,6.43766652,1829.0,1828.9,48.11505385]
[1746366777613,6.43766652,1829.0,1828.9,44.92976751]
[1746366778504,6.43766652,1829.0,1828.9,39.69176751]
[1746366778721,6.43766652,1829.0,1828.9,44.37976751]
[1746366778908,6.43766652,1829.0,1828.9,44.92976751]
[1746366779103,6.43766652,1829.0,1828.9,40.24176751]
[1746366779408,6.43766652,1829.0,1828.9,44.37976751]
[1746366779604,6.43766652,1829.0,1828.9,44.92976751]
[1746366783237,6.43766652,1829.0,1828.9,25.20576751]
[1746366784537,6.43766652,1829.0,1828.9,19.738]
[1746366785245,6.43766652,1829.0,1828.6,25.96112065]
[1746366785246,0.158,1828.9,1828.6,19.724]
[1746366785537,6.198,1828.8,1828.7,4.689]
[1746366788242,11.66606649,1828.8,1828.7,4.689]
[1746366788745,5.4683655,1828.7,1828.6,19.724]
[1746366788933,11.66623507,1828.8,1828.6,24.413]
[1746366789120,11.66623507,1828.8,1828.6,19.724]
[1746366789446,11.66623507,1828.8,1828.7,4.689]
[1746366790843,1.46255304,1829.0,1828.9,12.68326494]
[1746366791023,1.46255304,1829.0,1828.9,17.37226494]
[1746366791340,6.9300216,1829.0,1828.9,17.37226494]
[1746366793242,6.27045495,1829.0,1828.9,17.37226494]
[1746366794979,12.31045495,1829.0,1828.9,17.37226494]
[1746366795742,6.84298639,1829.0,1828.9,17.37226494]
[1746366796341,12.31045495,1829.0,1828.9,17.37226494]
[1746366799578,12.31045495,1829.0,1828.9,12.68326494]
[1746366799780,14.08821836,1829.0,1828.9,12.68326494]
[1746366800341,14.08821836,1829.0,1828.9,6.64326494]
[1746366805368,12.31045495,1829.0,1828.9,6.64326494]
[1746366805886,6.84298639,1829.0,1828.9,6.64326494]
[1746366806859,11.90513508,1829.0,1828.9,6.64326494]
[1746366807779,6.43766652,1829.0,1828.9,6.64326494]
[1746366811159,6.43766652,1829.0,1828.9,7.95296494]
[1746366811484,6.43766652,1829.0,1828.9,15.23113]
[1746366813179,6.43766652,1829.0,1828.9,29.73113]
[1746366827008,5.18030978,1829.0,1828.9,29.73113]
[1746366827914,5.18030978,1829.0,1828.9,32.73113]
[1746366828214,1e-08,1829.0,1828.9,32.73113]
[1746366841235,1e-08,1829.0,1828.9,37.40613]
[1746366843250,1e-08,1829.0,1828.9,57.12713]
[1746366845249,1e-08,1829.0,1828.9,52.45213]
[1746366845462,1e-08,1829.0,1828.9,57.12713]
[1746366846649,1e-08,1829.0,1828.9,48.14243]
[1746366846814,1e-08,1829.0,1828.9,52.81743]
[1746366847145,1e-08,1829.0,1828.9,48.14243]
[1746366847338,1e-08,1829.0,1828.9,52.81743]
[1746366847651,1e-08,1829.0,1828.9,53.36743]
[1746366850150,1e-08,1829.0,1828.9,48.69243]
[1746366850364,1e-08,1829.0,1828.9,53.36743]
[1746366853649,1e-08,1829.0,1828.9,22.95366249]
[1746366853851,1e-08,1829.0,1828.9,25.81826494]
[1746366854052,1e-08,1829.0,1828.9,31.83603245]
[1746366855855,1e-08,1829.0,1828.9,21.69326494]
[1746366856154,1e-08,1829.0,1828.9,26.36826494]
[1746366857014,1e-08,1829.0,1828.9,31.83603245]
[1746366858241,1e-08,1829.0,1828.9,26.36826494]
[1746366858850,6.04000001,1829.0,1828.9,26.36826494]
[1746366859023,6.04000001,1829.0,1828.9,31.83603245]
[1746366860534,6.04,1829.0,1828.9,31.83603245]
[1746366864872,6.04,1829.2,1829.0,5.46745428]
[1746366865032,6.04,1829.3,1829.1,4.669]
[1746366865235,7.19064114,1829.3,1829.0,5.46745428]
[1746366865736,7.19064114,1829.3,1829.1,19.169]
[1746366866069,7.19064114,1829.3,1829.2,4.669]
[1746366867475,6.04,1829.3,1829.2,4.669]
[1746366868470,6.04,1829.3,1829.2,10.68587076]
[1746366869279,6.04,1829.3,1829.2,11.44817076]
[1746366870778,6.04,1829.5,1829.4,6.01627309]
[1746366871842,6.04,1829.5,1829.4,21.41503917]
[1746366872140,6.04,1829.5,1829.4,15.94876608]
[1746366874474,6.04,1829.5,1829.4,20.06776608]
[1746366875278,6.04,1829.5,1829.4,25.53403917]
[1746366875950,6.04,1829.5,1829.4,20.06776608]
[1746366876449,6.04,1829.7,1829.4,20.06776608]
[1746366876757,6.04,1829.7,1829.4,25.53403172]
[1746366878481,6.04,1829.7,1829.4,25.5338069]
[1746366879582,6.04,1829.7,1829.5,2.55338069]
[1746366880286,6.04,1829.7,1829.5,8.01934413]
[1746366881357,6.04,1829.7,1829.5,22.51934413]
[1746366882280,5.46539241,1829.7,1829.5,17.05338069]
[1746366882778,5.46539241,1829.7,1829.5,14.5]
[1746366884084,11.50520017,1829.8,1829.4,10.13514576]
[1746366884448,11.50520017,1829.8,1829.4,24.63514576]
[1746366885371,6.04,1829.8,1829.4,24.63507374]
[1746366885683,11.5050997,1829.8,1829.4,24.63507374]
[1746366885847,11.5050997,1829.8,1829.5,2.46350737]
[1746366886571,11.5050997,1829.8,1829.4,24.63507374]
[1746366887072,6.04,1829.8,1829.5,5.4659693]
[1746366890292,6.04,1829.8,1829.5,5.46574372]
[1746366890749,6.04,1829.8,1829.5,19.96574372]
[1746366890949,6.04,1829.8,1829.5,22.97584201]
[1746366891794,6.04,1829.8,1829.5,28.44158263]
[1746366892101,6.04,1829.8,1829.6,5.46567314]
[1746366892406,6.04,1829.9,1829.7,5.46520834]
[1746366892586,6.04,1830.0,1829.8,4.661]
[1746366893700,6.14245265,1830.0,1829.8,4.661]
[1746366896402,5.46507815,1829.8,1829.7,14.5]
[1746366896703,5.46489646,1829.9,1829.7,4.661]
[1746366897058,6.04,1829.8,1829.7,4.661]
[1746366900299,6.04,1829.8,1829.7,10.12637683]
[1746366901300,6.04,1829.8,1829.7,24.62637683]
[1746366901462,6.04,1829.8,1829.7,27.08901451]
[1746366902773,6.04,1830.0,1829.7,27.08901451]
[1746366903186,0.10246267,1829.9,1829.7,27.08901451]
[1746366903798,0.10246267,1829.9,1829.7,21.62363768]
[1746366904263,0.10246267,1829.9,1829.7,19.161]
[1746366907980,0.10246267,1829.9,1829.7,4.661]
[1746366908782,6.04,1829.8,1829.7,4.661]
[1746366909190,6.14312778,1829.8,1829.7,4.661]
[1746366909408,5.46537683,1829.7,1829.6,14.5]
[1746366909571,11.60820593,1829.8,1829.6,14.5]
[1746366909905,0.10298658,1829.7,1829.6,14.5]
[1746366910109,0.10298658,1829.7,1829.6,19.161]
[1746366910622,0.10298658,1829.7,1829.6,4.661]
[1746366914611,1.48198658,1829.7,1829.6,4.661]
[1746366916612,6.94736341,1829.7,1829.6,4.661]
[1746366916914,1.48198658,1829.7,1829.6,4.661]
[1746366920215,1.379,1829.7,1829.6,4.661]
[1746366931201,1.379,1829.7,1829.6,12.67203391]
[1746366931630,1.62492773,1829.7,1829.6,7.20635836]
[1746366933616,1.62492773,1829.7,1829.6,4.661]
[1746366940745,1.62492773,1829.7,1829.6,10.12667555]
[1746366941637,1.62492773,1829.7,1829.6,4.661]
[1746366943047,1.62492773,1829.7,1829.6,10.12667555]
[1746366943613,1.62492773,1829.7,1829.6,4.661]
[1746366944320,1.62492773,1829.7,1829.6,19.161]
[1746366948258,1.62492773,1829.7,1829.6,24.62667555]
[1746366948461,1.62492773,1829.7,1829.6,27.17203175]
[1746366958349,1.379,1829.7,1829.6,27.17203175]
[1746366958951,1.62535503,1829.7,1829.6,27.17203175]
[1746366965466,1.62535503,1829.7,1829.6,27.72203175]
[1746366965820,1.379,1829.7,1829.6,27.72203175]
[1746366966866,1.379,1829.7,1829.6,28.48653175]
[1746366975085,1.379,1829.7,1829.6,31.48653175]
[1746366988789,10.21,1830.6,1830.3,5.46350056]
[1746366989001,6.04,1830.5,1830.4,4.638]
[1746366989163,0.21003128,1830.5,1830.4,4.638]
[1746366990409,6.25003128,1830.5,1830.4,10.65128671]
[1746366990569,6.25003128,1830.5,1830.4,12.26275983]
[1746366993903,6.25003128,1830.5,1830.4,26.76275983]
[1746366994111,6.25003128,1830.5,1830.4,25.15128671]
[1746366994487,6.04,1830.5,1830.4,25.15028671]
[1746366994886,6.2506009,1830.5,1830.4,25.15028671]
[1746367005623,11.71379234,1830.5,1830.3,4.636]
[1746367006005,6.2506009,1830.5,1830.3,4.636]
[1746367007309,6.2506009,1830.5,1830.3,10.09957729]
[1746367009615,6.2506009,1830.5,1830.3,19.136]
[1746367010517,6.2506009,1830.5,1830.3,24.5995807]
[1746367010823,6.04,1830.5,1830.3,19.136]
[1746367011017,11.50299474,1830.5,1830.3,4.636]
[1746367011219,5.67942251,1830.4,1830.3,4.636]
[1746367011521,1.6201358,1830.4,1830.3,4.637]
[1746367016531,7.08342251,1830.4,1830.3,4.637]
[1746367016731,1.6201358,1830.4,1830.3,4.637]
[1746367023212,7.08342251,1830.4,1830.3,4.637]
[1746367023515,8.33807544,1830.4,1830.3,4.637]
[1746367024263,5.4637125,1830.3,1830.1,14.5]
[1746367024411,5.46370566,1830.3,1830.2,4.63]
[1746367024611,5.67649626,1830.3,1830.2,4.63]
[1746367025028,0.2127906,1830.3,1830.2,4.63]
[1746367028565,1.404,1830.4,1830.2,5.093]
[1746367028724,1.404,1830.4,1830.2,4.63]
[1746367028924,1.61628475,1830.3,1830.2,4.63]
[1746367030828,1.61628475,1830.3,1830.2,10.09388372]
[1746367031568,1.61628475,1830.3,1830.2,4.63]
[1746367032525,1.404,1830.3,1830.2,4.63]
[1746367032726,1.61689179,1830.3,1830.2,4.63]
[1746367034949,1.61689179,1830.3,1830.2,19.13]
[1746367037290,1.404,1830.3,1830.2,19.13]
[1746367037885,1.61689179,1830.3,1830.2,19.13]
[1746367038883,1.61689179,1830.3,1830.2,24.59388372]
[1746367039252,1.61689179,1830.3,1830.2,27.13317209]
[1746367040550,1.61689179,1830.3,1830.2,27.68317209]
[1746367041665,1.404,1830.3,1830.2,27.68317209]
[1746367044304,1.404,1830.3,1830.2,28.49337209]
[1746367074757,1.404,1830.3,1830.2,27.68317209]
[1746367075043,1.404,1830.3,1830.2,27.67517209]
[1746367082254,1.404,1830.3,1830.2,28.45977209]
[1746367085928,1.404,1830.3,1830.2,27.67517209]
[1746367087245,1.404,1830.3,1830.2,28.45977209]
[1746367097976,1.404,1830.3,1830.2,27.67517209]
[1746367099375,1.404,1830.3,1830.2,28.46387209]
[1746367105083,1.404,1830.3,1830.2,31.46387209]
[1746367105300,1.404,1830.7,1830.6,6.01268982]
[1746367105489,1.56870376,1830.7,1830.6,10.62768982]
[1746367105995,1.56870376,1830.7,1830.6,25.12768982]
[1746367107478,1.404,1830.7,1830.6,25.12768982]
[1746367107803,1.55504864,1830.7,1830.6,25.12768982]
[1746367108679,1.404,1830.7,1830.6,25.12768982]
[1746367108880,1.55504864,1830.7,1830.6,25.12768982]
[1746367109084,1.55504864,1830.7,1830.6,19.665]
[1746367109290,1.404,1830.7,1830.6,19.665]
[1746367109583,1.55504864,1830.7,1830.6,19.665]
[1746367110397,5.46319741,1830.5,1830.3,19.708]
[1746367110563,5.46320848,1830.5,1830.4,4.608]
[1746367111176,6.86720848,1830.5,1830.4,4.608]
[1746367112496,6.86720848,1830.5,1830.3,19.708]
[1746367112677,6.86720848,1830.5,1830.4,4.608]
[1746367113695,7.01799079,1830.5,1830.4,4.608]
[1746367113898,2.80286446,1830.5,1830.4,4.608]
[1746367115394,1.55478231,1830.5,1830.4,4.608]
[1746367118995,7.01777056,1830.5,1830.4,4.608]
[1746367121298,1.55478231,1830.5,1830.4,4.608]
[1746367126706,7.01777056,1830.5,1830.4,4.608]
[1746367128306,1.55478231,1830.5,1830.4,4.608]
[1746367129211,7.01777056,1830.5,1830.4,4.608]
[1746367129408,8.26582945,1830.5,1830.4,4.608]
[1746367129909,2.8028412,1830.5,1830.4,4.608]
[1746367130506,8.26582945,1830.5,1830.4,4.608]
[1746367131208,2.8028412,1830.5,1830.3,4.608]
[1746367131520,5.46388372,1830.2,1830.1,4.609]
[1746367131738,5.46430805,1830.1,1830.0,4.609]
[1746367131938,5.6023569,1830.1,1830.0,4.609]
[1746367132508,7.0063569,1830.1,1830.0,4.609]
[1746367132721,8.25338096,1830.1,1830.0,4.609]
[1746367137529,6.84938096,1830.1,1830.0,3.205]
[1746367140032,5.46501681,1829.9,1829.7,4.603]
[1746367140408,6.17368121,1829.8,1829.7,4.603]
[1746367144653,6.17368121,1829.8,1829.7,10.06837683]
[1746367144808,6.17368121,1829.8,1829.7,4.603]